[Event "GCT 11th Sinquefield Cup 2024"]
[Site "Saint Louis"]
[Date "2024.08.20"]
[Round "2.3"]
[White "Abdusattorov, Nodirbek"]
[Black "Firouzja, Alireza"]
[Result "1/2-1/2"]
[ECO "C65"]
[WhiteElo "2762"]
[BlackElo "2751"]
[Annotator "TA"]
[PlyCount "91"]
[EventDate "2024.08.09"]
[EventType "tourn"]
[EventCountry "USA"]
[SourceTitle "playchess.com"]
[Source "ChessBase"]
[SourceQuality "1"]
[TimeControl "40/5400+30:1800+30"]

{[%evp 11,91,0,0,0,2,0,4,0,7,0,0,-29,-9,-9,-12,-9,0,0,0,0,16,18,24,11,8,14,18,4,6,11,15,10,17,14,28,30,18,13,18,28,15,15,4,0,0,0,14,12,0,0,8,5,5,6,4,8,7,0,0,0,0,0,6,6,6,6,6,6,6,6,6,6,6,6,6,0,6,0,6,0,6,0]} 1. e4 {[%emt 0:00:00]} e5 {[%emt 0:00:00]} 2. Nf3 {[%emt 0:00:00]} Nc6 {[%emt 0:00:00]} 3. Bb5 {[%emt 0:00:00]} Nf6 {[%emt 0:00:00]} 4. d3 {[%emt 0:00:00]} Bc5 {[%emt 0:00:00]} 5. O-O {[%emt 0:00:00]} Nd4 {[%emt 0:00:00]} 6. Nxd4 {[%emt 0:00:00]} Bxd4 {[%emt 0:00:00]} 7. Ba4 {[%emt 0:00:00]} c6 {[%emt 0:00:00]} 8. c3 {[%emt 0:00:00]} Bb6 {[%emt 0:00:00]} 9. Na3 {[%emt 0:00:00][%cal Bb1a3,Ba3c4,Bc4e3,Be3d5][%mdl 32]} d6 {[%emt 0:00:00]} 10. Bb3 {[%emt 0:00:00]} a5 {[%emt 0:00:00]} 11. Qe2 {[%emt 0:00:00]} a4 {[%emt 0:00:00]} 12. Bc2 {[%emt 0:00:00]} h6 {[%emt 0:00:00]} 13. Nc4 {[%emt 0:00:00]} Ba7 {[%emt 0:00:00]} 14. d4 {[%emt 0:00:00]} Bg4 {[%emt 0:00:00]} 15. Qd3 {[%emt 0:04:47]} b5 {[%emt 0:01:30]} (15... O-O $5) 16. Ne3 {[%emt 0:00:07]} Be6 {[%emt 0:07:31]} 17. d5 {[%emt 0:04:56]} cxd5 {[%emt 0:10:07]} 18. Nxd5 {[%emt 0:00:18]} Bd7 {[%emt 0:09:41]} 19. Be3 {[%emt 0:25:08]} a3 {[%emt 0:18:54]} 20. Bb3 {[%emt 0:03:37] Black must now prevent Nxf6+.} axb2 {[%emt 0:01:09]} 21. Rab1 {[%emt 0:01:24]} O-O {[%emt 0:12:34]} 22. Rxb2 {[%emt 0:10:18]} Bc6 {[%emt 0:02:56]} 23. Bxa7 {[%emt 0:03:02]} Rxa7 {[%emt 0:00:45]} 24. Qe3 {[%emt 0:00:12]} Ra6 {[%emt 0:06:26]} 25. Nxf6+ {[%emt 0:04:12]} (25. Nb4 $5 Rb6 $8 26. f3 $11) 25... Qxf6 {[%emt 0:00:10]} 26. Rd1 {[%emt 0:01:27] The position is equal.} Rc8 {[%emt 0:05:31]} 27. c4 {[%emt 0:07:18]} bxc4 {[%emt 0:03:44]} 28. Bxc4 {[%emt 0:00:16]} Ra4 {[%emt 0:00:03]} 29. Rc2 {[%emt 0:02:47][%cal Oc4b5] Strongly threatening Bb5!} Bd7 {[%emt 0:03:35]} 30. Qc1 {[%emt 0:01:48]} Qf4 {[%emt 0:08:50] [#]} 31. Bxf7+ $1 {[%emt 0:14:17]} Qxf7 {[%emt 0:00:18]} 32. Rxc8+ {[%emt 0:00:06]} Bxc8 {[%emt 0:00:04]} 33. Qxc8+ $11 {[%emt 0:00:08][%mdl 4096] Endgame. KQR-KQR} Kh7 {[%emt 0:00:03]} 34. f3 {[%emt 0:02:04]} (34. Rxd6 {is a self mate.} Rxa2) 34... Rxa2 {[%emt 0:01:14]} 35. h3 {[%emt 0:00:37]} Qg6 {[%emt 0:01:34][%csl Ga2][%cal Rg6g2] [#]} 36. Qg4 {[%emt 0:00:08]} Qxg4 {[%emt 0:00:24]} 37. hxg4 {[%emt 0:00:06] KR-KR} Ra6 {[%emt 0:00:04]} 38. Kh2 {[%emt 0:00:13]} Kg6 {[%emt 0:00:24]} 39. Kg3 {[%emt 0:00:09]} Kf6 {[%emt 0:00:24]} 40. Rc1 {[%emt 0:00:13]} Ra2 {[%emt 0:00:20]} 41. Rc7 {[%emt 0:30:06]} Rb2 {[%emt 0:30:28]} 42. Kh3 {[%emt 0:00:06]} Ra2 {[%emt 0:00:11]} 43. Kg3 {[%emt 0:00:02]} Rb2 {[%emt 0:00:05]} 44. Kh3 {[%emt 0:00:05]} Ra2 {[%emt 0:00:04]} 45. Kg3 {[%emt 0:00:06]} Rb2 {[%emt 0:00:05]} 46. Kh3 {[%emt 0:00:08] A balanced but interesting game.   Weighted Error Value: White=0.03 (flawless) /Black=0.02 (flawless) .  Inaccurate:     	White=1     	---        OK:         	White=15    	Black=19     Best:        	---       	Black=1} 1/2-1/2

[Event "GCT 11th Sinquefield Cup 2024"]
[Site "Saint Louis"]
[Date "2024.08.20"]
[Round "2.4"]
[White "So, Wesley"]
[Black "Caruana, Fabiano"]
[Result "1/2-1/2"]
[ECO "E51"]
[WhiteElo "2751"]
[BlackElo "2793"]
[Annotator "TA"]
[PlyCount "83"]
[EventDate "2024.08.09"]
[EventType "tourn"]
[EventCountry "USA"]
[SourceTitle "playchess.com"]
[Source "ChessBase"]
[SourceQuality "1"]
[TimeControl "40/5400+30:1800+30"]

{[%evp 16,83,21,21,22,15,31,15,35,0,0,0,0,0,24,0,0,0,13,10,4,13,20,14,23,19,22,10,4,4,8,6,12,0,0,0,0,0,0,0,0,0,0,0,0,0,0,-4,-10,-5,0,0,0,0,0,0,0,0,0,0,0,0,0,0,0,0,0,0,0,0]} 1. d4 {[%emt 0:00:00]} Nf6 {[%emt 0:00:00]} 2. c4 {[%emt 0:00:00]} e6 {[%emt 0:00:00]} 3. Nc3 {[%emt 0:00:00]} Bb4 {[%emt 0:00:00]} 4. e3 {[%emt 0:00:00]} O-O {[%emt 0:00:00]} 5. Bd3 {[%emt 0:00:00]} d5 {[%emt 0:00:00]} 6. a3 {[%emt 0:00:00]} dxc4 {[%emt 0:00:00]} 7. Bxc4 {[%emt 0:00:00]} Bd6 {[%emt 0:00:00]} 8. Nf3 {[%emt 0:00:00]} Nc6 {[%emt 0:00:00]} 9. O-O {[%emt 0:00:00]} e5 {[%emt 0:00:00]} 10. d5 {[%emt 0:00:00]} Ne7 {[%emt 0:00:00]} 11. e4 {[%emt 0:00:00]} a6 {[%emt 0:00:00]} 12. a4 {[%emt 0:00:00]} h6 {[%emt 0:00:00]} 13. h3 {[%emt 0:00:00]} Bd7 {[%emt 0:00:00][%cal Ob7b5]} 14. Re1 {[%emt 0:00:00]} Rc8 {[%emt 0:00:00]} 15. Be3 {[%emt 0:10:15]} c6 {[%emt 0:00:00]} 16. dxc6 {[%emt 0:01:35]} Bxc6 {[%emt 0:00:00]} 17. Qb3 {[%emt 0:02:02] White wants to play Bb6.} Ng6 {[%emt 0:03:31]} (17... Nxe4 $2 18. Nxe4 (18. Bb6 Nc5 $18) 18... Bb8 (18... Bxe4 $2 19. Bb6 $18) 19. Bb6 $18) (17... Bxe4 $2 18. Bb6 Bc7 19. Rad1 $18 (19. Nxe4 Bxb6 20. Nxe5 Qc7 $18) (19. Nxe4 Bxb6 20. Nxe5 Nxe4 $18)) 18. Rad1 {[%emt 0:06:15] Bc5 would now be deadly.} Qe7 {[%emt 0:01:16]} (18... Nxe4 $2 {too greedy.} 19. Nxe4 (19. Bb6 Nxc3 20. Bxd8 Nxd1 $18) 19... Bxe4 20. Bb6 $18) 19. Nd5 {[%emt 0:00:40]} Nxd5 {[%emt 0:21:09]} 20. Bxd5 {[%emt 0:00:15]} Bb4 {[%emt 0:05:18] [#] ...Bxd5 is the strong threat. The position is equal.} 21. Rf1 {[%emt 0:02:46]} Bc5 {[%emt 0:04:50]} 22. Bxc5 {[%emt 0:05:41]} Qxc5 {[%emt 0:00:08]} 23. Rfe1 {[%emt 0:00:18]} b5 {[%emt 0:25:51]} 24. Bxc6 {[%emt 0:18:13]} Rxc6 {[%emt 0:00:26][%cal Bc8c6,Bc6c2,Bc2b2,Bb2b4,Bb4c4][%mdl 32]} 25. Rd5 {[%emt 0:01:54]} Qc2 {[%emt 0:00:27]} 26. Qxc2 {[%emt 0:00:20]} Rxc2 {[%emt 0:00:04]} 27. axb5 {[%emt 0:00:11]} Nf4 {[%emt 0:02:30]} 28. Rd7 {[%emt 0:16:47]} ({Of course not} 28. Rxe5 Nd3 29. bxa6 Nxe1 30. Nxe1 Rxb2 $17) 28... axb5 {[%emt 0:00:11]} 29. b4 {[%emt 0:00:11]} Rb2 {[%emt 0:05:40]} 30. Nxe5 {[%emt 0:00:21]} Rxb4 {[%emt 0:00:04]} 31. Nd3 {[%emt 0:00:34]} Nxd3 {[%emt 0:00:07]} 32. Rxd3 $11 {[%emt 0:00:03][%mdl 4096] Endgame. KRR-KRR} Rb8 {[%emt 0:00:49]} 33. Rd7 {[%emt 0:03:32]} Rc4 {[%emt 0:00:12]} 34. e5 {[%emt 0:00:24]} b4 {[%emt 0:02:01] [#] aiming for ...b3.} 35. e6 {[%emt 0:00:08]} fxe6 {[%emt 0:00:03]} 36. Rxe6 {[%emt 0:00:04]} b3 {[%emt 0:01:14]} 37. Ree7 {[%emt 0:01:51]} b2 {[%emt 0:00:13]} 38. Rxg7+ {[%emt 0:00:03]} Kh8 {[%emt 0:00:03]} (38... Kf8 $5 39. Rgf7+ $8 Ke8 40. Rfe7+ Kf8 41. Rf7+ Kg8 42. Rg7+ Kf8 43. Rgf7+ $11) 39. Rh7+ {[%emt 0:00:03]} Kg8 {[%emt 0:00:02]} 40. Rhg7+ $1 {[%emt 0:00:02]} Kh8 {[%emt 0:00:03]} (40... Kf8 $5 41. Rgf7+ $8 Kg8 42. Rg7+ $11) 41. Rh7+ {[%emt 0:30:03]} Kg8 {[%emt 0:30:03]} 42. Rhg7+ $1 {[%emt 0:00:07] Not much happened in this game.   Weighted Error Value: White=0.03 (flawless) /Black=0.02 (flawless) .  Inaccurate:     	White=1     	---        OK:         	White=16    	Black=16     Best:        	White=4     	Black=2      Strong:       	White=2     	---} 1/2-1/2

[Event "GCT 11th Sinquefield Cup 2024"]
[Site "Saint Louis"]
[Date "2024.08.20"]
[Round "2.5"]
[White "Vachier-Lagrave, Maxime"]
[Black "Praggnanandhaa R"]
[Result "1/2-1/2"]
[ECO "C54"]
[WhiteElo "2721"]
[BlackElo "2749"]
[Annotator "TA"]
[PlyCount "64"]
[EventDate "2024.08.09"]
[EventType "tourn"]
[EventCountry "USA"]
[SourceTitle "playchess.com"]
[Source "ChessBase"]
[SourceQuality "1"]
[TimeControl "40/5400+30:1800+30"]

{[%evp 11,64,31,28,24,24,22,25,16,12,11,26,12,16,14,9,3,24,10,17,17,15,6,20,0,0,8,8,7,2,0,0,0,0,0,0,0,0,0,15,8,12,11,13,0,24,20,20,18,21,0,28,0,22,0,17]} 1. e4 {[%emt 0:00:00]} e5 {[%emt 0:00:00]} 2. Nf3 {[%emt 0:00:00]} Nc6 {[%emt 0:00:00]} 3. Bc4 {[%emt 0:00:00]} Bc5 {[%emt 0:00:00]} 4. c3 {[%emt 0:00:00]} Nf6 {[%emt 0:00:00]} 5. d3 {[%emt 0:00:00]} a6 {[%emt 0:00:00]} 6. O-O {[%emt 0:00:00]} Ba7 {[%emt 0:00:00]} 7. Nbd2 {[%emt 0:00:00]} d6 {[%emt 0:00:00]} 8. a4 {[%emt 0:00:00]} O-O {[%emt 0:00:00]} 9. h3 {[%emt 0:00:00] White has an edge.} h6 {[%emt 0:00:00]} 10. Re1 {[%emt 0:00:00]} Qe7 {[%emt 0:00:00]} 11. Nf1 {[%emt 0:00:00]} Be6 {[%emt 0:00:00]} 12. b3 {[%emt 0:00:00]} Rfe8 {[%emt 0:00:00]} 13. Be3 {[%emt 0:00:00]} Bxe3 {[%emt 0:00:00]} 14. Nxe3 {[%emt 0:00:03]} Qd7 {[%emt 0:00:00]} 15. Bxe6 {[%emt 0:02:42]} Qxe6 {[%emt 0:01:40]} 16. b4 {[%emt 0:07:48]} d5 {[%emt 0:04:49]} 17. Qb3 {[%emt 0:04:04]} dxe4 {[%emt 0:20:45]} 18. Qxe6 {[%emt 0:01:03]} fxe6 {[%emt 0:00:07]} 19. dxe4 {[%emt 0:00:48]} Nxe4 {[%emt 0:00:04]} 20. Nd1 {[%emt 0:09:05]} Nf6 {[%emt 0:00:54]} 21. Nxe5 {[%emt 0:00:12]} Nxe5 {[%emt 0:00:11]} 22. Rxe5 {[%emt 0:00:04]} Rad8 {[%emt 0:00:03]} 23. Ne3 {[%emt 0:04:43]} Nd5 {[%emt 0:06:45]} 24. Rc1 {[%emt 0:03:00]} Nxe3 {[%emt 0:04:57]} 25. Rxe3 $11 {[%emt 0:00:21][%mdl 4096] Endgame. KRR-KRR} Rd5 {[%emt 0:00:22]} 26. Rce1 {[%emt 0:01:00]} Kf7 {[%emt 0:00:37]} 27. Rf3+ {[%emt 0:01:32]} Kg8 {[%emt 0:00:18]} 28. Re4 {[%emt 0:01:10]} Re7 {[%emt 0:01:21]} 29. Rfe3 {[%emt 0:03:16]} Kf7 {[%emt 0:00:08]} 30. Rf3+ {[%emt 0:00:08]} Kg8 {[%emt 0:00:52]} 31. Rfe3 {[%emt 0:00:06]} Kf7 {[%emt 0:00:02]} 32. Rf3+ {[%emt 0:00:05]} Kg8 {[%emt 0:00:17] A balanced but interesting game.   Weighted Error Value: White=0.06 (flawless) /Black=0.05 (flawless) .  OK:         	White=10    	Black=10} 1/2-1/2

[Event "GCT 11th Sinquefield Cup 2024"]
[Site "Saint Louis"]
[Date "2024.08.21"]
[Round "3.1"]
[White "Praggnanandhaa R"]
[Black "Gukesh D"]
[Result "1/2-1/2"]
[ECO "E11"]
[WhiteElo "2749"]
[BlackElo "2766"]
[Annotator "TA"]
[PlyCount "124"]
[EventDate "2024.08.09"]
[EventType "tourn"]
[EventCountry "USA"]
[SourceTitle "playchess.com"]
[Source "ChessBase"]
[SourceQuality "1"]
[TimeControl "7200+30"]

{[%evp 16,124,12,15,24,26,53,18,21,15,20,13,22,14,14,0,0,0,0,0,0,0,0,0,0,0,0,-10,0,0,0,0,0,0,0,0,19,0,18,18,16,18,32,13,44,44,44,44,56,62,65,58,64,53,170,181,316,314,499,330,592,582,580,197,278,0,588,584,840,743,845,714,845,845,1163,1228,1317,1322,931,472,472,472,472,460,560,0,0,0,0,0,0,0,0,0,0,0,0,0,0,0,0,0,0,0,0,0,0,0,0,0,0]} 1. d4 {[%emt 0:00:34]} d5 {[%emt 0:00:08]} 2. Nf3 {[%emt 0:00:08]} Nf6 {[%emt 0:00:09]} 3. c4 {[%emt 0:00:05]} e6 {[%emt 0:00:14]} 4. g3 {[%emt 0:00:12]} Bb4+ {[%emt 0:03:06]} 5. Bd2 {[%emt 0:00:27]} Be7 {[%emt 0:00:29]} 6. Bg2 {[%emt 0:00:37]} O-O {[%emt 0:00:14]} 7. O-O {[%emt 0:00:06]} c6 {[%emt 0:00:03]} 8. Qc2 {[%emt 0:00:07]} Nbd7 {[%emt 0:00:06]} 9. Rd1 {[%emt 0:00:07]} a5 {[%emt 0:01:59]} 10. Bf4 {[%emt 0:01:05]} b6 {[%emt 0:00:20]} 11. Nbd2 {[%emt 0:08:10]} Nh5 {[%emt 0:01:34]} 12. Be5 {[%emt 0:11:57]} Ba6 {[%emt 0:02:12]} 13. e4 {[%emt 0:11:06]} Rc8 {[%emt 0:00:08]} 14. Rac1 {[%emt 0:02:37]} Bb7 {[%emt 0:01:34]} 15. Qb3 {[%emt 0:12:10]} f6 {[%emt 0:00:13]} 16. Bf4 {[%emt 0:02:51]} f5 {[%emt 0:00:09]} 17. exd5 {[%emt 0:21:22]} Nxf4 {[%emt 0:00:37]} 18. gxf4 {[%emt 0:00:07]} cxd5 {[%emt 0:00:10]} 19. Ne5 {[%emt 0:02:22][%cal Rc4d5]} Bb4 {[%emt 0:41:50]} 20. Nxd7 {[%emt 0:21:26]} Qxd7 {[%emt 0:00:32]} 21. cxd5 {[%emt 0:00:05]} Bxd5 {[%emt 0:24:01]} (21... Rxc1 22. Rxc1 exd5 (22... Bxd2 23. dxe6 a4 24. Qd3 $14) 23. Nf3 $16) 22. Bxd5 {[%emt 0:00:32]} Qxd5 {[%emt 0:00:13]} 23. Qxd5 {[%emt 0:00:11]} exd5 {[%emt 0:00:05]} 24. Nf3 {[%emt 0:03:47]} Kf7 {[%emt 0:15:12]} 25. Kg2 {[%emt 0:01:36]} Ke6 {[%emt 0:03:42]} 26. a4 {[%emt 0:08:59]} Bd6 {[%emt 0:03:55]} 27. Re1+ {[%emt 0:06:18]} (27. Ng5+ Ke7 28. Kf3 (28. Nxh7 $2 Bxf4 29. Rxc8 Rxc8 $17) (28. Re1+ Kd7 $17) 28... h6 $17) 27... Kd7 {[%emt 0:00:40]} 28. Ne5+ {[%emt 0:00:06]} Bxe5 {[%emt 0:01:08]} 29. fxe5 $11 {[%emt 0:00:30][%mdl 4096] Endgame. KRR-KRR} Ke6 {[%emt 0:05:44]} 30. b3 {[%emt 0:02:16]} g5 {[%emt 0:04:48] [#]} 31. f4 $1 {[%emt 0:02:02]} gxf4 {[%emt 0:04:21]} (31... h6 32. Rf1) 32. Kf3 {[%emt 0:00:48]} Rg8 $1 {[%emt 0:02:32]} (32... Rxc1 $2 33. Rxc1 Kd7 34. Kxf4 $18) 33. Rg1 {[%emt 0:02:07]} (33. Rxc8 Rxc8 34. Kxf4 Rc2 $11) 33... Rxg1 {[%emt 0:05:16]} 34. Rxc8 $14 {[%emt 0:00:19] KR-KR} Kd7 {[%emt 0:02:04] Dodges Rc6} (34... Rf1+ $14 35. Ke2 Rh1) 35. Rb8 $1 $18 {[%emt 0:03:00]} Kc7 {[%emt 0:02:56]} (35... Rd1 {was called for.}) 36. Rh8 {[%emt 0:00:16]} Rf1+ {[%emt 0:00:04]} (36... Kc6 $142 37. Kxf4 Kd7 38. Rxh7+ Ke6 39. Rh6+ Ke7 40. Rxb6 (40. Kxf5 Rf1+ 41. Kg4 Rg1+ 42. Kf4 Rf1+ 43. Ke3 Rh1 $18) 40... Rf1+ 41. Kg5 Rd1) 37. Ke2 {[%emt 0:00:05]} Rb1 {[%emt 0:00:06]} 38. Rxh7+ {[%emt 0:00:03]} Kc6 {[%emt 0:00:03]} 39. Rh6+ $2 {[%emt 0:03:32]} (39. h4) 39... Kc7 {[%emt 0:00:01] [#]} (39... Kb7 $142 40. Rh7+ Kc6) 40. Rh7+ $2 {[%emt 0:01:15]} (40. h4 $1) 40... Kc6 {[%emt 0:00:01] [#]} 41. h4 $1 {[%emt 0:00:59][%cal Bh2h4,Bh4h5][%mdl 32]} Rb2+ {[%emt 0:02:11]} 42. Kf3 {[%emt 0:00:08]} Rxb3+ {[%emt 0:00:04]} 43. Kxf4 {[%emt 0:00:03]} Rb4 {[%emt 0:00:34]} 44. h5 {[%emt 0:02:49] h6 would now be deadly.} Rxd4+ {[%emt 0:03:45]} 45. Kxf5 {[%emt 0:00:02]} Rd1 {[%emt 0:00:40]} 46. e6 {[%emt 0:02:55]} d4 {[%emt 0:03:04]} 47. Rd7 {[%emt 0:01:08] Strongly threatening Rd8.} Rf1+ {[%emt 0:00:24]} 48. Kg6 {[%emt 0:00:23]} Rg1+ {[%emt 0:00:12]} 49. Kf7 {[%emt 0:00:06] Threatening mate with e7.} Rf1+ {[%emt 0:00:34]} 50. Ke8 $2 {[%emt 0:00:55]} ({Better is} 50. Ke7 $18) 50... Rh1 $11 {[%emt 0:00:19] The position is equal.} 51. e7 {[%emt 0:00:35]} (51. Rxd4 Rxh5 52. Kf7 b5) 51... Rxh5 {[%emt 0:00:11] ( -> ...Rh8+)} 52. Rxd4 {[%emt 0:00:30]} b5 {[%emt 0:01:17] Prevents Rc4+.} 53. Kf7 {[%emt 0:00:25]} Rh7+ {[%emt 0:00:25]} 54. Ke6 {[%emt 0:00:31]} Rxe7+ {[%emt 0:00:31]} 55. Kxe7 {[%emt 0:00:02] Kf6 would kill now.} bxa4 {[%emt 0:00:30]} 56. Rxa4 {[%emt 0:01:03] KR-KP} Kb5 {[%emt 0:00:01]} 57. Rh4 {[%emt 0:00:28]} a4 $1 {[%emt 0:00:00]} 58. Kd6 {[%emt 0:00:25]} a3 {[%emt 0:00:02]} 59. Rh2 {[%emt 0:00:37]} Kc4 {[%emt 0:00:13]} 60. Kc6 {[%emt 0:00:26]} Kb3 {[%emt 0:00:12]} 61. Kb5 {[%emt 0:00:13] White wants to mate with Rh3+.} a2 {[%emt 0:00:05]} 62. Rxa2 {[%emt 0:00:15]} Kxa2 {[%emt 0:00:01] Blacks defense is rewarded with a draw.   Weighted Error Value: White=0.33/Black=0.15 (very precise) .  Missed win:     	White=1     	---        Mistake:       	White=2     	Black=4      Inaccurate:     	White=1     	Black=3      OK:         	White=17    	Black=17     Best:        	White=3     	Black=9      Strong:       	White=2     	Black=2} 1/2-1/2

[Event "GCT 11th Sinquefield Cup 2024"]
[Site "Saint Louis"]
[Date "2024.08.21"]
[Round "3.2"]
[White "Firouzja, Alireza"]
[Black "Vachier-Lagrave, Maxime"]
[Result "1/2-1/2"]
[ECO "D02"]
[WhiteElo "2751"]
[BlackElo "2721"]
[Annotator "TA"]
[PlyCount "79"]
[EventDate "2024.08.09"]
[EventType "tourn"]
[EventCountry "USA"]
[SourceTitle "playchess.com"]
[Source "ChessBase"]
[SourceQuality "1"]
[TimeControl "7200+30"]

{[%evp 11,79,14,39,14,41,40,49,30,27,24,35,11,10,7,5,9,43,67,56,55,49,29,29,36,90,81,103,76,122,71,80,0,0,-104,-100,-99,-111,-115,-102,-110,-107,-93,-85,-93,-88,-95,-85,-82,-86,-126,-104,-130,-125,-177,-143,-177,-176,-160,-119,-179,-187,-201,-201,-191,0,-195,0,-188,0,-149]} 1. Nf3 {[%emt 0:00:03]} d5 {[%emt 0:00:05]} 2. d4 {[%emt 0:00:06]} Nf6 {[%emt 0:00:04]} 3. Bf4 {[%emt 0:00:05]} c5 {[%emt 0:00:05]} 4. e3 {[%emt 0:00:06]} Nc6 {[%emt 0:00:05]} 5. Nbd2 {[%emt 0:00:08]} Nh5 {[%emt 0:00:38]} 6. dxc5 {[%emt 0:00:08] D02: 1 d4 d5 2 Nf3 sidelines, including 2...Nf6 3 g3 and 2...Nf6 3 Bf4.} Nxf4 {[%emt 0:00:26]} 7. exf4 {[%emt 0:00:07]} g6 $1 {[%emt 0:00:26] 7...g6 is better than 7...Qa5.} 8. c3 {[%emt 0:00:10]} Bh6 {[%emt 0:00:24]} 9. Qa4 {[%emt 0:00:32]} O-O {[%emt 0:01:47]} 10. Bb5 {[%emt 0:00:49]} Qc7 {[%emt 0:00:07]} 11. Bxc6 {[%emt 0:00:42]} bxc6 {[%emt 0:00:13]} 12. Ne5 {[%emt 0:00:18]} Bb7 {[%emt 0:00:24]} 13. g3 $146 {[%emt 0:00:26]} ({Predecessor:} 13. Ndf3 f6 14. Nd3 e5 15. fxe5 fxe5 16. Nfxe5 Rae8 17. O-O Rxe5 18. Nxe5 Qxe5 19. Qxa7 {1-0 Tang,A (2522)-Nasuta,G (2535) Titled Tuesday intern op 21st Feb Late blitz 2023 (7)}) 13... f6 {[%emt 0:01:20]} 14. Ng4 {[%emt 0:00:29]} Bg7 {[%emt 0:00:05]} 15. h4 {[%emt 0:00:43]} h5 {[%emt 0:01:55]} 16. Ne3 {[%emt 0:00:18]} e5 {[%emt 0:01:31]} 17. O-O-O {[%emt 0:02:28]} Rae8 {[%emt 0:11:27]} (17... Bh6 $14) 18. f5 $16 {[%emt 0:18:17]} (18. Qxa7 $6 Ra8 19. Qb6 Qxb6 20. cxb6 Rxa2 $11) 18... Bc8 {[%emt 0:01:31]} 19. g4 {[%emt 0:23:22]} e4 {[%emt 0:02:44]} ({Black should play} 19... gxf5 20. Nxf5 (20. gxh5 Kh7 $17) (20. gxf5 Kh8 $11) 20... Bxf5 21. gxf5 Kh7) 20. Rdg1 {[%emt 0:20:43]} ({Worse is} 20. fxg6 Bxg4 21. Nxg4 hxg4 $15) (20. Nb3 $142) 20... hxg4 $16 {[%emt 0:03:14]} 21. Rxg4 {[%emt 0:00:41]} ({White must play} 21. h5 $1 $16 {[%cal Rh5g6]} Bxf5 22. hxg6) 21... gxf5 $11 {[%emt 0:00:58]} 22. Rg6 {[%emt 0:05:39]} (22. Rgg1 $1 $11) 22... f4 $17 {[%emt 0:01:28]} 23. Rhg1 {[%emt 0:00:46]} Re7 $1 {[%emt 0:00:28]} 24. Nc2 {[%emt 0:00:28]} Bf5 {[%emt 0:04:20]} 25. R6g2 {[%emt 0:00:56] [#]} f3 $1 {[%emt 0:06:23]} 26. Nd4 {[%emt 0:10:35]} Bd7 {[%emt 0:08:38]} (26... fxg2 $2 27. Nxf5 Re5 28. Nd4 $17) 27. Rg6 {[%emt 0:05:03] [#]} Kh7 $1 {[%emt 0:00:19]} 28. Nf1 {[%emt 0:11:35]} Bh6+ {[%emt 0:05:37]} 29. Kb1 {[%emt 0:00:11]} ({Don't blunder} 29. Ne3 $2 Bxe3+ 30. fxe3 f2 $19) 29... Rg7 {[%emt 0:01:09]} 30. Rxg7+ {[%emt 0:00:38]} Bxg7 {[%emt 0:00:07]} 31. a3 {[%emt 0:04:01]} f5 {[%emt 0:03:52]} 32. h5 {[%emt 0:01:29]} (32. Qd1 $17) 32... Be5 {[%emt 0:04:49]} ({But not} 32... f4 33. Nh2) 33. Rg6 {[%emt 0:06:33]} Rf6 {[%emt 0:01:29]} 34. Rg1 {[%emt 0:00:12]} Rh6 {[%emt 0:10:26]} 35. Ne3 {[%emt 0:06:51]} (35. Ng3 $17) 35... Rxh5 $19 {[%emt 0:02:40]} 36. Qb3 {[%emt 0:00:27]} Qb8 {[%emt 0:05:16]} 37. Qa4 {[%emt 0:02:19]} Qc7 {[%emt 0:01:31]} 38. Qb3 $1 {[%emt 0:00:11]} Qb8 {[%emt 0:11:24]} 39. Qa4 {[%emt 0:00:10]} Qc7 {[%emt 0:01:28]} 40. Qb3 $1 {[%emt 0:00:45]} 1/2-1/2